fUSD/lending_fUSD_20251127
["ID","MTS","AMOUNT","RATE_DAILY","PERIOD"]
[394971689,1764233444563,-500.0,0.00015675,2]
[394971690,1764233444571,-644.0,0.00015675,2]
[394971691,1764233444581,-515.0,0.00015675,2]
[394971692,1764233444590,-584.62918853,0.00015675,2]
[394971693,1764233444599,-500.0,0.00015675,2]
[394971694,1764233444608,-166.67,0.00015712,2]
[394971695,1764233444617,-4832.67548988,0.00015723,2]
[394971696,1764233444627,-600.0,0.0001575,2]
[394971697,1764233444636,-200.0,0.00015789,2]
[394971698,1764233444646,-358.54653959,0.00015794,2]
[394971699,1764233444659,-500.0,0.00015812,2]
[394971700,1764233444668,-644.0,0.00015812,2]
[394971701,1764233444677,-515.0,0.00015812,2]
[394971702,1764233444686,-500.0,0.00015812,2]
[394971703,1764233444696,-200.0,0.00015812,2]
[394971704,1764233444705,-696.47,0.00015823,2]
[394971705,1764233444715,-300.0,0.00015827,2]
[394971706,1764233444724,-194.51,0.00015832,2]
[394971707,1764233444734,-3628.37168946,0.000159,2]
[394971708,1764233444743,-407.18034414,0.000159,2]
[394971709,1764233444753,-161.78,0.000159,2]
[394971710,1764233444762,-300.0,0.00015949,2]
[394971712,1764233444771,-644.0,0.00015949,2]
[394971714,1764233444780,-515.0,0.00015949,2]
[394971716,1764233444789,-500.0,0.00015949,2]
[394971717,1764233444798,-151.590482,0.00015949,2]
[394971718,1764233444807,-200.0,0.0001597,2]
[394971719,1764233444816,-500.0,0.00015973,2]
[394971720,1764233444826,-500.0,0.00015973,2]
[394971721,1764233444835,-500.0,0.00015973,2]
[394971722,1764233444844,-501.97640939,0.00015973,2]
[394971723,1764233444853,-151.0,0.00015973,2]
[394971724,1764233444863,-155.23231,0.00015973,2]
[394971725,1764233444871,-151.0,0.00015973,2]
[394971726,1764233444880,-518.71309594,0.00015991,2]
[394971727,1764233444890,-215.76575282,0.00015999,2]
[394971728,1764233444900,-500.0,0.00015999,2]
[394971729,1764233444909,-311.83844217,0.00015999,2]
[394971730,1764233444919,-473.30646144,0.00015999,2]
[394971731,1764233444928,-731.64658691,0.00016,2]
[394971732,1764233444939,-6877.10790694,0.00016,2]
[394971733,1764233444948,-90029.91003058,0.00016,2]
[394971749,1764233446193,-430.38089385,0.00016,2]
[394971751,1764233446205,-4324.31919412,0.00016,2]
[394971753,1764233446299,-409.3595,0.00016,2]
[394971754,1764233446309,-325.0,0.00016,2]
[394971755,1764233446320,-3518.25961192,0.00016,2]
[394971756,1764233446352,-2443.17076953,0.00016,2]
[394971757,1764233446361,-2902.82923047,0.00016,4]
[394971758,1764233446373,-1254.49405122,0.00016,4]
[394971759,1764233446406,-4054.3821137,0.00016,4]
[394971760,1764233446422,-643.0000012,0.00016,4]
[394971761,1764233446437,-1019.2825,0.00016,4]
[394971767,1764233449479,3563.3498,0.00014902,2]
[394971768,1764233528192,-439.26475531,0.00015001,2]
[394971769,1764233528222,-500.0,0.00015001,2]
[394971770,1764233528254,-500.0,0.00015001,2]
[394971771,1764233528285,-500.0,0.00015001,2]
[394971772,1764233528314,-500.0,0.00015001,2]
[394971773,1764233528344,-500.0,0.00015001,2]
[394971774,1764233528374,-500.0,0.00015001,2]
[394971775,1764233528404,-500.0,0.00015001,2]
[394971776,1764233528434,-502.58249871,0.00015001,2]
[394971777,1764233528464,-500.0,0.00015001,2]
[394971778,1764233551319,500.0,0.00014901,2]
[394971779,1764233584921,83510.6502,0.00014902,2]
[394971780,1764233592633,-435.78500757,0.00014902,2]
[394971781,1764233595897,-300.00000017,0.00014902,2]
[394971782,1764233597890,-500.0,0.00014902,2]
[394971783,1764233599905,-178.93494479,0.00014902,2]
[394971784,1764233602099,-311.44960371,0.00014902,2]
[394971785,1764233605320,-191.11272575,0.00014902,2]
[394971786,1764233610844,-239.70283635,0.00014902,2]
[394971787,1764233612565,-300.0,0.00014902,2]
[394971788,1764233614041,-212.0,0.00014902,2]
[394971789,1764233616783,-280.72856826,0.00014902,2]
[394971794,1764233772389,-162.9696661,0.00014844,2]
[394971795,1764233818516,-11.5903339,0.00014844,2]
[394971796,1764233818544,-195.0,0.00014872,2]
[394971797,1764233818579,-195.0,0.00014889,2]
[394971798,1764233818613,-151.0,0.00014899,2]
[394971799,1764233818642,-300.0,0.000149,2]
[394971800,1764233818671,-1200.0,0.000149,2]
[394971801,1764233818700,-300.0,0.000149,2]
[394971802,1764233818727,-150.0,0.00014901,2]
[394971803,1764233818756,-283.90147905,0.00014901,2]
[394971804,1764233818785,-500.0,0.00014901,2]
[394971805,1764233818812,-372.88715065,0.00014901,2]
[394971806,1764233818839,-377.09448036,0.00014901,2]
[394971807,1764233818866,-500.0,0.00014901,2]
[394971808,1764233818895,-255.54175061,0.00014901,2]
[394971809,1764233819122,-500.0,0.00014901,2]
[394971810,1764233819149,-153.66803778,0.00014901,2]
[394971811,1764233819181,-500.0,0.00014901,2]
[394971812,1764233819213,-500.0,0.00014901,2]
[394971813,1764233819245,-500.0,0.00014901,2]
[394971814,1764233819278,-323.82769833,0.00014901,2]
[394971815,1764233819307,-337.99546369,0.00014901,2]
[394971816,1764233819943,-2599.09393953,0.00014902,2]
[394971817,1764233821491,-10000.01,0.00014902,2]
[394971818,1764233821563,-10000.01,0.00014902,2]
[394971819,1764233821680,-10000.01,0.00014902,2]
[394971820,1764233821931,-10000.01,0.00014902,2]
[394971821,1764233822001,-10000.01,0.00014902,2]
[394971822,1764233822182,-150.0,0.000149,2]
[394971823,1764233822221,-9700.01,0.00014902,2]
[394971824,1764233824471,-10000.01,0.00014902,2]
[394971825,1764233824573,-10000.01,0.00014902,2]
[394971826,1764233846792,-502.12675571,0.00014802,2]
[394971827,1764233850088,-500.0,0.00014802,2]
[394971828,1764233851553,-198.45165438,0.00014802,2]
[394971829,1764233853919,-325.9682664,0.00014802,2]
[394971830,1764233856003,-200.0,0.00014802,2]
[394971831,1764233857560,-500.0,0.00014802,2]
[394971832,1764233859167,-238.82738389,0.00014802,2]
[394971833,1764233861545,-331.64569443,0.00014802,2]
[394971834,1764233864232,-498.45165438,0.00014802,2]
[394971835,1764233906772,-137.28565745,0.00014802,2]
[394971836,1764233906798,-163.732632,0.00014802,2]
[394971837,1764233906822,-198.98171055,0.00014802,2]
[394971838,1764233982771,-255.92714014,0.00014802,2]
[394971839,1764233985152,-500.0,0.00014802,2]
[394971840,1764233990291,-250.45198404,0.00014802,2]
[394971841,1764233992387,-174.03173377,0.00014802,2]
[394971842,1764233994651,-500.0,0.00014802,2]
[394971843,1764233997614,-242.52206028,0.00014802,2]
[394971844,1764233999157,-274.56713682,0.00014802,2]
[394971845,1764234001178,-500.0,0.00014802,2]
[394971846,1764234005665,-500.0,0.00014802,2]
[394971847,1764234009097,-406.4433916,0.00014802,2]
[394971848,1764234011254,-128.60144677,0.00014802,2]
[394971849,1764234011282,-210.0,0.00014802,2]
[394971850,1764234011310,-0.35893617,0.00014802,2]
[394971853,1764234014471,-81.40175328,0.00014802,2]
[394971854,1764234014497,-397.31624994,0.00014802,2]
[394971855,1764234086825,-69.48363946,0.00014802,2]
[394971856,1764234086846,-430.51636054,0.00014802,2]
[394971857,1764234088390,-500.0,0.00014802,2]
[394971858,1764234132359,-163.73263199,0.00014802,2]
[394971859,1764234132383,-39.73153946,0.00014802,2]
[394971860,1764234132406,-296.53582855,0.00014802,2]
[394971861,1764234134041,-325.96826623,0.00014802,2]
[394971862,1764234137404,-500.0,0.00014802,2]
[394971863,1764234138966,-200.0,0.00014802,2]
[394971864,1764234143062,-156.69183458,0.00014802,2]
[394971865,1764234145485,-435.83011934,0.00014802,2]
[394971866,1764234148694,-175.71800322,0.00014802,2]
[394971867,1764234152444,-406.4433916,0.00014802,2]
[394971868,1764234154117,-368.12374505,0.00014802,2]
[394971869,1764234155911,-500.0,0.00014802,2]
[394971870,1764234158016,-500.0,0.00014802,2]
[394971871,1764234160069,-182.9108029,0.00014802,2]
[394971872,1764234161643,-350.0,0.00014802,2]
[394971873,1764234163983,-174.03173377,0.00014802,2]
[394971874,1764234166873,-339.7753563,0.00014802,2]
[394971875,1764234168411,-500.0,0.00014802,2]
[394971876,1764234170577,-179.50081846,0.00014802,2]
[394971877,1764234170601,-70.95116558,0.00014802,2]
[394971878,1764234173616,-249.54801596,0.00014802,2]
[394971879,1764234175708,-500.0,0.00014802,2]
[394971880,1764234178365,-371.28199678,0.00014802,2]
[394971881,1764234182248,-500.0,0.00014802,2]
[394971882,1764234236799,-808.21882168,0.00014802,2]
[394971883,1764234236820,-191.78117832,0.00014802,2]
[394971884,1764234238371,-500.0,0.00014802,2]
[394971886,1764234296808,-308.21882168,0.00014802,2]
[394971887,1764234296831,-191.78117832,0.00014802,2]
[394971888,1764234301895,-195.04354709,0.00014723,2]
[394971889,1764234301921,-55.01067821,0.00014801,2]
[394971890,1764234305234,-500.0,0.00014801,2]
[394971891,1764234307497,-500.0,0.00014801,2]
[394971892,1764234309903,-144.98932179,0.00014801,2]
[394971893,1764234309926,-300.0,0.00014801,2]
[394971894,1764234309948,-55.01067821,0.00014802,2]
[394971896,1764234312843,-500.0,0.00014726,2]
[394971898,1764234314861,-500.0,0.00014726,2]
[394971899,1764234317810,-500.0,0.00014726,2]
[394971900,1764234320464,-249.54801596,0.00014726,2]
[394971901,1764234324244,-342.33339584,0.00014726,2]
[394971902,1764234331619,-300.0,0.00014726,2]
[394971903,1764234334607,-195.31373055,0.00014726,2]
[394971904,1764234337880,-500.0,0.00014726,2]
[394971905,1764234340154,-581.0457758,0.00014726,2]
[394971906,1764234344057,-249.54801596,0.00014726,2]
[394971907,1764234345516,-194.07285986,0.00014726,2]
[394971908,1764234346955,-225.56507546,0.00014726,2]
[394971909,1764234349115,-486.19290993,0.00014726,2]
[394971910,1764234351218,-500.0,0.00014726,2]
[394971911,1764234354071,-500.0,0.00014726,2]
[394971912,1764234355643,-225.43286318,0.00014726,2]
[394971913,1764234359672,-500.0,0.00014726,2]
[394971914,1764234361197,-500.0,0.00014726,2]
[394971915,1764234362760,-228.26601918,0.00014726,2]
[394971916,1764234364855,-191.43954845,0.00014726,2]
[394971917,1764234367052,-249.54801596,0.00014726,2]
[394971918,1764234370386,-273.56713682,0.00014726,2]
[394971919,1764234374184,-500.0,0.00014726,2]
[394971920,1764234375516,-381.37746492,0.00014726,2]
[394971921,1764234377861,-280.15032197,0.00014726,2]
[394971922,1764234380110,-500.0,0.00014726,2]
[394971923,1764234381929,-347.25026301,0.00014726,2]
[394971924,1764234383491,-353.36575955,0.00014726,2]
[394971925,1764234387348,-250.45198404,0.00014726,2]
[394971926,1764234389987,-500.0,0.00014726,2]
[394971927,1764234391484,-500.0,0.00014726,2]
[394971928,1764234392971,-174.03173377,0.00014726,2]
[394971929,1764234395143,-227.95818906,0.00014726,2]
[394971930,1764234398206,-500.0,0.00014726,2]
[394971931,1764234400315,-500.0,0.00014726,2]
[394971932,1764234402873,-246.70617127,0.00014726,2]
[394971933,1764234405012,-500.0,0.00014726,2]
[394971934,1764234407187,-454.10972621,0.00014726,2]
[394971935,1764234420316,407.0,0.00014801,30]
[394971936,1764234421451,150.0,0.00014663,2]
[394971937,1764234435527,-339.31502325,0.00014726,2]
[394971938,1764234498762,150.0,0.00014652,2]
[394971939,1764234533389,150.0,0.00014658,2]
[394971940,1764234578885,1852.42,0.00014316,2]
[394971941,1764234590941,1000.0,0.00014641,2]
[394971952,1764234632216,-473.32,0.00014801,2]
[394971953,1764234632271,-726.68,0.00014801,2]
[394971954,1764234632280,-300.0,0.00014801,2]
[394971955,1764234632290,-210.0,0.00014801,2]
[394971956,1764234632300,-3377.27102052,0.00014802,2]
[394971957,1764234632310,-192.34895948,0.00014802,2]
[394971958,1764234632322,-1468.67056078,0.00014802,2]
[394971959,1764234632335,-1698.2708838,0.00014802,2]
[394971960,1764234632345,-195.0,0.00014802,2]
[394971961,1764234632355,-7616.12624347,0.00014802,2]
[394971962,1764234632365,-340.4290329,0.00014802,2]
[394971963,1764234632376,-338.3067671,0.00014802,2]
[394971964,1764234632386,-760.5901,0.00014802,2]
[394971965,1764234632395,-12689.27108719,0.00014802,2]
[394971966,1764234632407,-820.7253007,0.00014802,2]
[394971967,1764234632418,-915.89916443,0.00014802,2]
[394971968,1764234632441,-2073.29589676,0.00014802,2]
[394971969,1764234632456,-939.31088014,0.00014802,2]
[394971970,1764234632475,-974.17884844,0.00014802,2]
[394971971,1764234632486,-1482.30532491,0.00014802,2]
[394971972,1764234632498,-580.36061433,0.00014802,2]
[394971973,1764234632509,-909.89021096,0.00014802,2]
[394971974,1764234632521,-339.75260614,0.00014802,2]
[394971975,1764234632532,-756.71092669,0.00014802,2]
[394972028,1764234634747,525.7108,0.00014702,2]
[394972030,1764234638457,-500.0,0.00014801,2]
[394972031,1764234638467,-261.02100545,0.00014801,2]
[394972032,1764234638477,-198.73103534,0.00014801,2]
[394972033,1764234638487,-283.77698464,0.00014801,2]
[394972034,1764234638502,-180.18915161,0.00014801,2]
[394972035,1764234638512,-1926.86095194,0.00014802,2]
[394972036,1764234638523,-1616.09048088,0.00014802,2]
[394972037,1764234638539,-675.01067611,0.00014802,2]
[394972038,1764234638560,-1294.22726958,0.00014802,2]
[394972039,1764234638572,-19942.25021689,0.00014802,2]
[394972040,1764234638600,-498.98998669,0.00014802,2]
[394972045,1764234640413,-4979.76509798,0.00014802,2]
[394972046,1764234640424,-45789.5,0.00014802,2]
[394972059,1764234641472,-1.7e-07,0.00014802,2]
[394972060,1764234641483,-1900.0,0.00014802,2]
[394972061,1764234641494,-748.51401743,0.00014802,2]
[394972062,1764234641505,-915.8,0.00014802,2]
[394972067,1764234644005,-117750.56074279,0.00014802,2]
[394972068,1764234644851,-66657.64910273,0.00014802,2]
[394972069,1764234644862,-25186.3396482,0.00014802,2]
[394972071,1764234646393,-9098.36906577,0.00014802,2]
[394972072,1764234646404,-341.27162896,0.00014802,2]
[394972074,1764234646448,-945.89473246,0.00014802,2]
[394972075,1764234646460,-16980.4662963,0.00014802,2]
[394972076,1764234646473,-2147.1,0.00014802,2]
[394972077,1764234646510,-418123.63922443,0.00014802,2]
[394972078,1764234646523,-578.20924308,0.00014812,2]
[394972079,1764234646532,-195.0,0.00014827,2]
[394972080,1764234646542,-437.15,0.00014893,2]
[394972081,1764234646551,-150.0,0.00014893,2]
[394972082,1764234646561,-151.0,0.00014894,2]
[394972083,1764234646570,-151.0,0.00014894,2]
[394972084,1764234646580,-151.0,0.00014894,2]
[394972085,1764234646590,-151.0,0.00014894,2]
[394972086,1764234646599,-151.0,0.00014894,2]
[394972087,1764234646609,-151.0,0.00014894,2]
[394972088,1764234646618,-151.0,0.00014894,2]
[394972089,1764234646628,-151.0,0.00014894,2]
[394972090,1764234646637,-151.0,0.00014894,2]
[394972091,1764234646646,-151.0,0.00014894,2]
[394972092,1764234646656,-151.0,0.00014894,2]
[394972093,1764234646665,-151.0,0.00014894,2]
[394972094,1764234646674,-151.0,0.00014894,2]
[394972095,1764234646683,-151.0,0.00014894,2]
[394972096,1764234646693,-151.0,0.00014894,2]
[394972097,1764234646702,-500.0,0.00014894,2]
[394972098,1764234646714,-151.0,0.00014894,2]
[394972099,1764234646723,-500.0,0.00014894,2]
[394972101,1764234646733,-151.0,0.00014894,2]
[394972102,1764234646742,-500.0,0.00014894,2]
[394972103,1764234646752,-151.0,0.00014894,2]
[394972104,1764234646761,-500.0,0.00014894,2]
[394972105,1764234646770,-151.0,0.00014894,2]
[394972106,1764234646780,-500.0,0.00014894,2]
[394972108,1764234646789,-151.0,0.00014894,2]
[394972109,1764234646799,-500.0,0.00014894,2]
[394972110,1764234646808,-151.0,0.00014894,2]
[394972111,1764234646817,-500.0,0.00014894,2]
[394972112,1764234646826,-500.0,0.00014894,2]
[394972113,1764234646837,-500.0,0.00014894,2]
[394972114,1764234646846,-500.0,0.00014894,2]
[394972116,1764234646856,-500.0,0.00014894,2]
[394972117,1764234646865,-500.0,0.00014894,2]
[394972118,1764234646874,-181.89747322,0.00014894,2]
[394972119,1764234646884,-287.32928026,0.00014902,2]
[394972120,1764234646893,-500.0,0.00014902,2]
[394972121,1764234646905,-600.0,0.00014902,2]
[394972122,1764234646915,-1485.3957674,0.00014906,2]
[394972123,1764234646925,-7282.53619333,0.00015124,2]
[394972124,1764234646937,-23834.92815625,0.00015124,2]
[394972125,1764234646946,-3377.2710205,0.00015146,2]
[394972126,1764234646955,-3359.29040406,0.00015146,2]
[394972127,1764234646965,-166.66,0.00015166,2]
[394972128,1764234646974,-437.15,0.00015167,2]
[394972129,1764234646984,-600.0,0.00015176,2]
[394972130,1764234646993,-5166.0,0.00015209,2]
[394972131,1764234647002,-218.64,0.00015296,2]
[394972132,1764234647012,-581.0,0.00015328,2]
[394972133,1764234647021,-1235.16,0.00015347,2]
[394972134,1764234647030,-24680.12,0.00015368,2]
[394972135,1764234647040,-1391.71,0.00015397,2]
[394972136,1764234647049,-6026.66996918,0.00015399,2]
[394972137,1764234647060,-1818.22713082,0.00015399,2]
[394972138,1764234647069,-356.76277859,0.00015399,2]
[394972139,1764234647085,-643.23722141,0.00015399,2]
[394972140,1764234647094,-195.24,0.000154,2]
[394972141,1764234647105,-437.15,0.00015441,2]
[394972142,1764234647114,-151.0,0.00015442,2]
[394972143,1764234647273,-500.0,0.00015442,2]
[394972144,1764234647284,-600.0,0.0001545,2]
[394972145,1764234647293,-5166.0,0.00015465,2]
[394972146,1764234647303,-3377.2710205,0.0001549,2]
[394972147,1764234647316,-3359.29040406,0.0001549,2]
[394972148,1764234647325,-169.65,0.000155,2]
[394972149,1764234647335,-355.48,0.000155,2]
[394972150,1764234647344,-177.74,0.000155,2]
[394972151,1764234647354,-150.0,0.000155,2]
[394972152,1764234647364,-177.74,0.000155,2]
[394972153,1764234647374,-150.0,0.000155,2]
[394972154,1764234647384,-177.74,0.000155,2]
[394972155,1764234647393,-177.74,0.000155,2]
[394972156,1764234647405,-347.98,0.000155,2]
[394972157,1764234647414,-168.41005503,0.000155,2]
[394972158,1764234647427,-9.32994497,0.000155,2]
[394972159,1764234647436,-169.85,0.000155,2]
[394972160,1764234647446,-213.28947081,0.00015508,2]
[394972161,1764234647455,-560.06947666,0.00015561,2]
[394972162,1764234647465,-114.65286809,0.00015561,2]
[394972163,1764234721474,5643.2491535,0.00014702,2]
[394972164,1764234721496,1674.9442465,0.00014702,2]
[394972165,1764234749429,8325.0657535,0.00014702,2]
[394972166,1764234749619,10000.01,0.00014702,2]
[394972167,1764234749644,10000.01,0.00014702,2]
[394972168,1764234749683,10000.01,0.00014702,2]
[394972169,1764234749710,10000.01,0.00014702,2]
[394972170,1764234749738,10000.01,0.00014702,2]
[394972171,1764234749763,10000.01,0.00014702,2]
[394972172,1764234749789,10000.01,0.00014702,2]
[394972173,1764234749814,10000.01,0.00014702,2]
[394972174,1764234749839,10000.01,0.00014702,2]
[394972175,1764234749870,633204.16235966,0.00014702,2]
[394972176,1764234749906,28470.68188684,0.00014702,2]
[394972177,1764234777466,14234.1355,0.00014702,2]
[394972178,1764234779485,200.73336253,0.00014628,2]
[394972180,1764234816272,1017.2224,0.00014702,2]
[394972183,1764234854094,4565.9376,0.00014702,2]
[394972185,1764234884779,500.0,0.00014701,2]
[394972188,1764234917994,760000.0,0.00014702,2]
[394972189,1764234920588,321.74,0.00014682,2]
[394972193,1764235010878,157.88808166,0.00015,7]
[394972194,1764235055351,265.7932,0.00014693,2]
[394972195,1764235101087,200.0,0.00014662,2]
[394972196,1764235201532,4696.4,0.00015,10]
[394972197,1764235213423,150.34440364,0.00014701,2]
[394972198,1764235218971,1160.51,7.329e-05,2]
[394972199,1764235219031,1160.51,7.715e-05,2]
[394972200,1764235219259,1160.51,8.1e-05,2]
[394972201,1764235219488,1160.51,8.486e-05,2]
[394972202,1764235219668,1160.51,8.872e-05,2]
[394972203,1764235219801,-1365.28189182,0.00014711,2]
[394972204,1764235219922,1160.51,9.257e-05,2]
[394972205,1764235220113,1160.51,9.643e-05,2]
[394972206,1764235220303,1160.51,0.00010029,2]
[394972207,1764235220878,99.79239636,0.00010415,2]
[394972208,1764235220905,1060.71760364,0.00010415,2]
[394972209,1764235221078,1160.51,0.000108,2]
[394972210,1764235221370,1160.51,0.00011186,2]
[394972211,1764235221479,1160.51,0.00011572,2]
[394972212,1764235221681,1160.51,0.00011958,2]
[394972213,1764235221930,1160.51,0.00012343,2]
[394972214,1764235222117,1160.51,0.00012729,2]
[394972215,1764235222312,1160.51,0.00013115,2]
[394972216,1764235222527,815.72239636,0.000135,2]
[394972217,1764235222549,344.78760364,0.000135,2]
[394972218,1764235223821,1160.51,0.00013886,2]
[394972219,1764235224036,1160.51,0.00014272,2]
[394972220,1764235224071,-500.0,0.00014711,2]
[394972221,1764235224221,1160.51,0.00014658,2]
[394972222,1764235225577,-338.02,0.00014711,2]
[394972223,1764235229428,-350.0,0.00014711,2]
[394972224,1764235232043,-500.0,0.00014711,2]
[394972225,1764235233614,-500.0,0.00014711,2]
[394972226,1764235236361,-500.0,0.00014711,2]
[394972227,1764235238554,-500.0,0.00014711,2]
[394972228,1764235241734,-500.0,0.00014711,2]
[394972229,1764235244354,-407.21253442,0.00014711,2]
[394972230,1764235246983,-500.0,0.00014711,2]
[394972231,1764235250278,-255.92714014,0.00014711,2]
[394972232,1764235252499,-500.0,0.00014711,2]
[394972233,1764235252891,5523.0,0.000111,5]
[394972234,1764235253137,4477.0,0.000109,3]
[394972235,1764235254288,166.66,0.0001392,2]
[394972236,1764235254518,166.66,0.00014213,2]
[394972237,1764235254717,166.66,0.00014506,2]
[394972238,1764235255686,-244.07285986,0.00014711,2]
[394972239,1764235257775,-283.07274848,0.00014711,2]
[394972240,1764235260380,-500.0,0.00014711,2]
[394972241,1764235261891,-249.54801596,0.00014711,2]
[394972242,1764235269196,-500.0,0.00014711,2]
[394972243,1764235271954,-500.0,0.00014711,2]
[394972244,1764235273538,-302.0,0.00014711,2]
[394972245,1764235274510,672.09,0.00013699,2]
[394972246,1764235277406,524.62239636,0.0001463,2]
[394972247,1764235277434,1075.37760364,0.0001463,2]
[394972248,1764235283997,5523.0,0.00011,5]
[394972249,1764235284393,4477.0,0.000108,3]
[394972250,1764235364824,999.0,0.00014563,3]
[394972251,1764235406803,-174.684007,0.00014709,2]
[394972252,1764235406825,-195.0,0.00014746,2]
[394972253,1764235406847,-130.315993,0.00014771,2]
[394972254,1764235458139,163.39,0.00019178,30]
[394972255,1764235468312,5523.0,0.000108,5]
[394972256,1764235468521,5523.0,0.000106,3]
[394972257,1764235468747,2979.0,0.000104,2]
[394972258,1764235472447,167.66,0.00011599,2]
[394972259,1764235472684,167.66,0.00014499,2]
[394972260,1764235476143,250.0,0.00014499,2]
[394972261,1764235499653,5523.0,0.000108,5]
[394972262,1764235499896,912.69,0.000106,3]
[394972263,1764235499918,3564.31,0.000106,3]
[394972264,1764235501489,484.36,0.00014491,2]
[394972265,1764235527403,1500.0,0.00014409,2]
[394972266,1764235528736,150.34440364,0.00014686,2]
[394972267,1764235530876,5523.0,0.000146,5]
[394972268,1764235531111,2468.0,0.000144,3]
[394972269,1764235533869,1832.99559636,0.0001392,2]
[394972270,1764235533896,2486.2214419,0.0001392,2]
[394972272,1764235567903,2009.04,7.945e-05,2]
[394972274,1764235632476,-302.0,0.00014771,2]
[394972275,1764235634809,-276.20924308,0.00014771,2]
[394972276,1764235634831,-25.79075692,0.00014771,2]
[394972277,1764235636104,155.82,0.00014346,2]
[394972278,1764235638250,7835.15,0.00014346,2]
[394972279,1764235638277,27006.92,0.00014346,2]
[394972280,1764235687941,2580.6425834,0.0001439,2]
[394972281,1764235690930,635.66047941,0.000135,2]
[394972282,1764235692625,4707.93,0.00014321,2]
[394972283,1764235699928,389.32128991,7.888e-05,2]
[394972284,1764235704345,865.82834028,0.00014559,2]
[394972286,1764235713918,419.74216453,0.00014559,2]
[394972289,1764235747891,2981.52772587,7.945e-05,2]
[394972290,1764235747913,4134.11417513,7.945e-05,2]
[394972291,1764235763088,987.02951012,0.00014559,2]
[394972301,1764235831398,-195.0,0.00014774,2]
[394972303,1764235831409,-300.0,0.00014777,2]
[394972304,1764235831418,-151.0,0.00014784,2]
[394972305,1764235831427,-70.66,0.00014784,2]
[394972306,1764235831441,-250.29670199,0.00014784,2]
[394972307,1764235831451,-612.61,0.00014786,2]
[394972308,1764235831460,-2751.0,0.00014792,2]
[394972309,1764235831469,-166.66,0.00014799,2]
[394972310,1764235831478,-168.0,0.00014902,2]
[394972311,1764235831487,-300.0,0.00014999,2]
[394972312,1764235831496,-1200.0,0.00014999,2]
[394972313,1764235831505,-300.0,0.00014999,2]
[394972314,1764235831514,-6450.58525989,0.00015,2]
[394972315,1764235831523,-166.66,0.00015092,2]
[394972316,1764235831532,-1732.55050065,0.000151,2]
[394972317,1764235831542,-604.0,0.00015195,2]
[394972318,1764235831551,-245.7626,0.00015205,2]
[394972319,1764235831560,-168.0,0.0001522,2]
[394972320,1764235831570,-168.0,0.00015228,2]
[394972321,1764235831579,-1002.0,0.00015231,2]
[394972322,1764235831589,-500.0000001,0.00015249,2]
[394972323,1764235831598,-174.91,0.00015249,2]
[394972324,1764235831607,-2569.6746456,0.00015266,2]
[394972325,1764235831616,-757.8,0.00015295,3]
[394972326,1764235831625,-300.0,0.00015295,2]
[394972327,1764235831634,-151.0,0.00015296,2]
[394972328,1764235831645,-151.0,0.00015296,2]
[394972329,1764235831654,-500.0,0.00015296,2]
[394972330,1764235831663,-151.0,0.00015296,2]
[394972331,1764235831672,-568.9349664,0.00015296,2]
[394972332,1764235831681,-151.0,0.00015296,2]
[394972333,1764235831690,-151.0,0.00015296,2]
[394972334,1764235831699,-151.0,0.00015296,2]